fUSD/lending_fUSD_20240222
["ID","MTS","AMOUNT","RATE_DAILY","PERIOD"]
[314903907,1708625568002,-10191.48,0.00034657,4]
[314903908,1708625568012,-14297.7,0.00034657,4]
[314903909,1708625568022,-870.84,0.00034657,4]
[314903910,1708625568031,-1739.37,0.00034657,4]
[314903911,1708625568041,-1219.49,0.00034657,4]
[314903912,1708625568050,-500.0,0.00034657,4]
[314903913,1708625568060,-662.36,0.00034657,4]
[314903914,1708625568069,-5320.7,0.00034657,4]
[314903915,1708625568079,-1389.1,0.00034657,4]
[314903916,1708625568090,-1178.0,0.00034657,4]
[314903917,1708625568099,-500.0,0.00034657,4]
[314903918,1708625568110,-4535.27,0.00034657,4]
[314903919,1708625568119,-1510.56,0.00034657,4]
[314903920,1708625568129,-574.08,0.00034657,4]
[314903921,1708625568139,-913.43,0.00034657,4]
[314903922,1708625568150,-957.57,0.00034657,4]
[314903923,1708625568161,-1132.71,0.00034657,4]
[314903924,1708625568170,-1840.14,0.00034657,4]
[314903925,1708625568180,-500.0,0.00034657,4]
[314903926,1708625568190,-500.0,0.00034657,4]
[314903927,1708625568200,-1105.16,0.00034657,4]
[314903928,1708625568209,-8688.16,0.00034657,4]
[314903929,1708625568219,-856.33,0.00034657,4]
[314903930,1708625568229,-1035.38,0.00034657,4]
[314903931,1708625568239,-500.0,0.00034657,4]
[314903932,1708625568249,-597.54,0.00034657,4]
[314903933,1708625568259,-1031.07,0.00034657,4]
[314903934,1708625568269,-607.73,0.00034657,4]
[314903935,1708625568278,-4152.62,0.00034657,4]
[314903936,1708625568287,-4573.59,0.00034657,4]
[314903937,1708625568297,-5220.29,0.00034657,4]
[314903938,1708625568307,-1750.52,0.00034657,4]
[314903939,1708625568316,-500.0,0.00034657,4]
[314903940,1708625568326,-740.42,0.00034657,4]
[314903941,1708625568335,-579.71,0.00034657,4]
[314903942,1708625568344,-543.8,0.00034657,4]
[314903943,1708625568354,-27929.76,0.00034657,4]
[314903944,1708625568364,-500.0,0.00034657,4]
[314903945,1708625568374,-769.4,0.00034657,4]
[314903946,1708625568383,-500.0,0.00034657,4]
[314903947,1708625568393,-3104.43,0.00034657,4]
[314903948,1708625568403,-500.0,0.00034657,4]
[314903949,1708625568414,-31733.49,0.00034657,4]
[314903950,1708625568424,-2557.13,0.00034657,4]
[314903951,1708625568435,-763.62,0.00034657,4]
[314903952,1708625568446,-2617.91,0.00034657,4]
[314903953,1708625568456,-635.4,0.00034657,4]
[314903954,1708625568466,-1402.56,0.00034657,4]
[314903955,1708625568476,-10076.31,0.00034657,4]
[314903956,1708625568486,-500.0,0.00034657,4]
[314903957,1708625568498,-719.16,0.00034657,4]
[314903958,1708625568508,-549.71,0.00034657,4]
[314903959,1708625568518,-815.24,0.00034657,4]
[314903960,1708625568528,-540.22,0.00034657,4]
[314903961,1708625568538,-10365.29,0.00034657,4]
[314903962,1708625568547,-1908.5,0.00034657,4]
[314903963,1708625568557,-500.0,0.00034657,4]
[314903964,1708625568567,-1930.81,0.00034657,4]
[314903965,1708625568577,-4645.8,0.00034657,4]
[314903966,1708625568587,-1831.86,0.00034657,4]
[314903967,1708625568597,-1019.93,0.00034657,4]
[314903968,1708625568608,-500.0,0.00034657,4]
[314903969,1708625568620,-831.39,0.00034657,4]
[314903970,1708625568630,-1113.04,0.00034657,4]
[314903971,1708625568640,-2272.34,0.00034657,4]
[314903972,1708625568650,-703.63,0.00034657,4]
[314903973,1708625568660,-19048.88,0.00034657,4]
[314903974,1708625568670,-899.16,0.00034657,4]
[314903975,1708625568679,-1790.32,0.00034657,4]
[314903976,1708625568688,-3342.93,0.00034657,4]
[314903977,1708625568698,-6652.12,0.00034657,4]
[314903978,1708625568707,-1083.4,0.00034657,4]
[314903979,1708625568717,-500.0,0.00034657,4]
[314903980,1708625568727,-500.0,0.00034657,4]
[314903981,1708625568737,-500.0,0.00034657,4]
[314903982,1708625568750,-566.02,0.00034657,4]
[314903983,1708625568759,-612.06,0.00034657,4]
[314903984,1708625568768,-2397.11,0.00034657,4]
[314903985,1708625568777,-3448.92,0.00034657,4]
[314903986,1708625568786,-668.81,0.00034657,4]
[314903987,1708625568796,-588.46,0.00034657,4]
[314903988,1708625568806,-890.14,0.00034657,4]
[314903989,1708625568815,-504.65,0.00034657,4]
[314903990,1708625568825,-1569.54,0.00034657,4]
[314903991,1708625568834,-2839.46,0.00034657,4]
[314903992,1708625568843,-633.73062969,0.00034657,4]
[314903993,1708625568852,-1599.27,0.00034657,4]
[314903994,1708625568862,-12262.15,0.00034657,4]
[314903995,1708625568871,-500.0,0.00034657,4]
[314903996,1708625568880,-603.26,0.00034657,4]
[314903997,1708625568890,-4428.36,0.00034657,4]
[314903998,1708625568903,-684.48,0.00034657,4]
[314903999,1708625568912,-2710.14,0.00034657,4]
[314904000,1708625568921,-11511.86,0.00034657,4]
[314904001,1708625568931,-13857.62,0.00034657,4]
[314904002,1708625568941,-1092.92,0.00034657,4]
[314904003,1708625568951,-500.0,0.00034657,4]
[314904004,1708625568960,-1594.69,0.00034657,4]
[314904005,1708625568969,-500.0,0.00034657,4]
[314904006,1708625568979,-935.58,0.00034657,4]
[314904007,1708625568988,-543.61,0.00034657,4]
[314904008,1708625569000,-787.78,0.00034657,4]
[314904009,1708625569009,-500.0,0.00034657,4]
[314904010,1708625569019,-500.0,0.00034657,4]
[314904011,1708625569029,-952.32,0.00034657,4]
[314904012,1708625569038,-12927.16,0.00034657,4]
[314904013,1708625569048,-15657.06,0.00034657,4]
[314904014,1708625569058,-1397.23,0.00034657,4]
[314904015,1708625569068,-734.09,0.00034657,4]
[314904016,1708625569078,-500.0,0.00034657,4]
[314904017,1708625569087,-638.64,0.00034657,4]
[314904018,1708625569097,-500.0,0.00034657,4]
[314904019,1708625569108,-1622.99,0.00034657,4]
[314904020,1708625569117,-2266.68,0.00034657,4]
[314904021,1708625569127,-2464.49,0.00034657,4]
[314904022,1708625569136,-500.0,0.00034657,4]
[314904023,1708625569146,-1572.14,0.00034657,4]
[314904024,1708625569156,-500.0,0.00034657,4]
[314904025,1708625569165,-1658.88,0.00034657,4]
[314904026,1708625569175,-1524.56,0.00034657,4]
[314904027,1708625569184,-802.87,0.00034657,4]
[314904028,1708625569194,-631.35,0.00034657,4]
[314904029,1708625569203,-338.94354232,0.00034657,4]
[314904030,1708625569213,-500.0,0.00034657,4]
[314904031,1708625569222,-795.52,0.00034657,4]
[314904032,1708625569232,-6459.32,0.00034657,4]
[314904033,1708625569243,-3708.97,0.00034657,4]
[314904034,1708625569252,-1063.1,0.00034657,4]
[314904035,1708625569261,-833.35,0.00034657,4]
[314904036,1708625569270,-8548.5,0.00034657,4]
[314904037,1708625569280,-619.16,0.00034657,4]
[314904038,1708625569289,-8589.16,0.00034657,4]
[314904039,1708625569299,-559.93,0.00034657,4]
[314904040,1708625569308,-725.96,0.00034657,4]
[314904041,1708625569318,-500.0,0.00034657,4]
[314904042,1708625569328,-885.04,0.00034657,4]
[314904043,1708625569338,-695.88,0.00034657,4]
[314904044,1708625569347,-1152.72,0.00034657,4]
[314904045,1708625569357,-1529.13,0.00034657,4]
[314904046,1708625569367,-3657.93,0.00034657,4]
[314904047,1708625569377,-1521.37,0.00034657,4]
[314904048,1708625569386,-500.0,0.00034657,4]
[314904049,1708625569396,-649.89,0.00034657,4]
[314904050,1708625569405,-1012.78,0.00034657,4]
[314904051,1708625569415,-175.85716852,0.00034657,4]
[314904052,1708625569425,-982.4,0.00034657,4]
[314904053,1708625569434,-1281.51,0.00034657,4]
[314904054,1708625569445,-757.3,0.00034657,4]
[314904055,1708625569455,-548.38,0.00034657,4]
[314904056,1708625569464,-500.0,0.00034657,4]
[314904057,1708625569474,-2156.76,0.00034657,4]
[314904058,1708625569483,-2549.51,0.00034657,4]
[314904059,1708625569493,-753.97,0.00034657,4]
[314904060,1708625569502,-500.0,0.00034657,4]
[314904061,1708625569511,-2213.41,0.00034657,4]
[314904062,1708625569521,-5006.44,0.00034657,4]
[314904063,1708625569532,-500.0,0.00034657,4]
[314904064,1708625569541,-4381.7,0.00034657,4]
[314904065,1708625569551,-1083.67,0.00034657,4]
[314904066,1708625569561,-2631.91,0.00034657,4]
[314904067,1708625569571,-928.82,0.00034657,4]
[314904068,1708625569581,-1050.11,0.00034657,4]
[314904069,1708625569592,-988.3,0.00034657,4]
[314904070,1708625569602,-553.85,0.00034657,4]
[314904071,1708625569612,-1569.8,0.00034657,4]
[314904072,1708625569622,-1347.04,0.00034657,4]
[314904073,1708625569633,-1930.76,0.00034657,4]
[314904074,1708625569642,-654.06,0.00034657,4]
[314904075,1708625569652,-1578.95,0.00034657,4]
[314904076,1708625569663,-1562.64,0.00034657,4]
[314904077,1708625569978,-1152.52,0.00034657,4]
[314904078,1708625569993,-13046.67,0.00034657,4]
[314904079,1708625570003,-554.48,0.00034657,4]
[314904080,1708625570014,-5718.46,0.00034657,4]
[314904081,1708625570023,-585.24,0.00034657,4]
[314904082,1708625570033,-4320.81,0.00034657,4]
[314904083,1708625570043,-1143.61,0.00034657,4]
[314904084,1708625570053,-3703.9,0.00034657,4]
[314904085,1708625570063,-500.0,0.00034657,4]
[314904086,1708625570072,-845.41,0.00034657,4]
[314904087,1708625570083,-1239.69,0.00034657,4]
[314904088,1708625570093,-842.27,0.00034657,4]
[314904089,1708625570103,-968.09,0.00034657,4]
[314904090,1708625570112,-1082.3,0.00034657,4]
[314904091,1708625570122,-2562.83,0.00034657,4]
[314904092,1708625570132,-2763.17,0.00034657,4]
[314904093,1708625570142,-1672.02,0.00034657,4]
[314904094,1708625570153,-500.0,0.00034657,4]
[314904095,1708625570162,-850.13,0.00034657,4]
[314904096,1708625570172,-668.88,0.00034657,4]
[314904097,1708625570181,-500.0,0.00034657,4]
[314904098,1708625570190,-1634.02,0.00034657,4]
[314904099,1708625570200,-3311.96,0.00034657,4]
[314904100,1708625570209,-1279.14,0.00034657,4]
[314904101,1708625570219,-930.33,0.00034657,4]
[314904102,1708625570228,-2625.59,0.00034657,4]
[314904103,1708625570238,-619.14,0.00034657,4]
[314904104,1708625570247,-1635.09,0.00034657,4]
[314904105,1708625570257,-2609.74,0.00034657,4]
[314904106,1708625570266,-3610.42,0.00034657,4]
[314904107,1708625570276,-1343.66,0.00034657,4]
[314904108,1708625570285,-1380.71,0.00034657,4]
[314904109,1708625570295,-152.26171501,0.00034713,2]
[314904110,1708625570304,-295.507495,0.00034717,2]
[314904111,1708625570314,-308.542885,0.00034717,2]
[314904112,1708625570324,-187.64,0.00034751,2]
[314904113,1708625570333,-1027.559576,0.00034794,2]
[314904114,1708625570343,-500.0,0.00034794,4]
[314904115,1708625570352,-500.0,0.00034794,4]
[314904116,1708625570362,-62257.005139,0.00034794,2]
[314904117,1708625570371,-7042.041049,0.00034794,2]
[314904118,1708625570381,-500.0,0.00034794,4]
[314904119,1708625570391,-500.0,0.00034794,4]
[314904120,1708625570400,-213.24480259,0.00034794,4]
[314904121,1708625570410,-464.01702811,0.00034794,4]
[314904122,1708625570420,-500.0,0.00034794,4]
[314904123,1708625570430,-500.0,0.00034794,4]
[314904124,1708625570441,-500.0,0.00034794,2]
[314904125,1708625570451,-514.99,0.00034794,4]
[314904126,1708625570461,-555.79,0.00034794,4]
[314904127,1708625570471,-500.0,0.00034794,4]
[314904128,1708625570480,-388.95714299,0.00034794,4]
[314904129,1708625570490,-641.75,0.00034794,4]
[314904130,1708625570500,-750.74,0.00034794,4]
[314904131,1708625570510,-500.0,0.00034794,4]
[314904132,1708625570520,-500.0,0.00034794,4]
[314904133,1708625570530,-500.0,0.00034794,4]
[314904134,1708625570539,-500.0,0.00034794,4]
[314904135,1708625570549,-542.31,0.00034794,4]
[314904136,1708625570559,-621.21,0.00034794,4]
[314904137,1708625570569,-645.6601438,0.00034794,4]
[314904138,1708625570579,-500.0,0.00034794,4]
[314904139,1708625570588,-551.07,0.00034794,4]
[314904140,1708625570598,-744.09,0.00034794,4]
[314904141,1708625570608,-500.0,0.00034794,4]
[314904142,1708625570618,-500.0,0.00034794,4]
[314904143,1708625570627,-500.0,0.00034794,4]
[314904144,1708625570637,-573.53,0.00034794,4]
[314904145,1708625570646,-500.0,0.00034794,4]
[314904146,1708625570656,-500.0,0.00034794,4]
[314904147,1708625570666,-500.0,0.00034794,4]
[314904148,1708625570675,-500.0,0.00034794,4]
[314904149,1708625570684,-500.0,0.00034794,4]
[314904150,1708625570694,-524.07,0.00034794,4]
[314904151,1708625570703,-951.85,0.00034794,4]
[314904152,1708625570712,-500.0,0.00034794,4]
[314904153,1708625570722,-926.28,0.00034794,4]
[314904154,1708625570731,-529.22,0.00034794,4]
[314904155,1708625570741,-500.0,0.00034794,4]
[314904156,1708625570751,-744.11,0.00034794,4]
[314904157,1708625570760,-500.0,0.00034794,4]
[314904158,1708625570770,-500.0,0.00034794,4]
[314904159,1708625570779,-1143.73,0.00034794,4]
[314904160,1708625570789,-500.0,0.00034794,4]
[314904161,1708625570799,-500.0,0.00034794,4]
[314904162,1708625570809,-779.36,0.00034794,4]
[314904163,1708625570819,-635.41,0.00034794,4]
[314904164,1708625570828,-555.19,0.00034794,4]
[314904165,1708625570838,-500.0,0.00034794,4]
[314904166,1708625570848,-822.26,0.00034794,4]
[314904167,1708625570858,-769.66,0.00034794,4]
[314904168,1708625570867,-500.0,0.00034794,4]
[314904169,1708625570876,-889.62,0.00034794,4]
[314904170,1708625570886,-634.08,0.00034794,4]
[314904171,1708625570900,-442.28674252,0.00034794,4]
[314904172,1708625570909,-567.01,0.00034794,4]
[314904173,1708625570919,-721.11,0.00034794,4]
[314904174,1708625570929,-653.98,0.00034794,4]
[314904175,1708625570939,-659.59,0.00034794,4]
[314904176,1708625570949,-627.93,0.00034794,4]
[314904177,1708625570959,-951.61,0.00034794,4]
[314904178,1708625570968,-677.11,0.00034794,4]
[314904179,1708625570979,-668.92,0.00034794,4]
[314904180,1708625570989,-746.18,0.00034794,4]
[314904181,1708625571000,-655.97,0.00034794,4]
[314904182,1708625571009,-500.0,0.00034794,4]
[314904183,1708625571018,-944.62,0.00034794,4]
[314904184,1708625571028,-1016.3,0.00034794,4]
[314904185,1708625571037,-500.0,0.00034794,4]
[314904186,1708625571046,-500.0,0.00034794,4]
[314904187,1708625571056,-500.0,0.00034794,4]
[314904188,1708625571066,-804.18,0.00034794,4]
[314904189,1708625571075,-535.66,0.00034794,4]
[314904190,1708625571084,-936.27,0.00034794,4]
[314904191,1708625571094,-500.0,0.00034794,4]
[314904192,1708625571103,-573.6,0.00034794,4]
[314904193,1708625571112,-573.73,0.00034794,4]
[314904194,1708625571121,-906.98,0.00034794,4]
[314904195,1708625571131,-625.48,0.00034794,4]
[314904196,1708625571140,-619.25,0.00034794,4]
[314904197,1708625571149,-802.24,0.00034794,4]
[314904198,1708625571159,-553.85,0.00034794,4]
[314904199,1708625571168,-951.64,0.00034794,4]
[314904200,1708625571178,-203.47260403,0.00034794,4]
[314904201,1708625571187,-694.67,0.00034794,4]
[314904202,1708625571197,-991.06,0.00034794,4]
[314904203,1708625571206,-676.95,0.00034794,4]
[314904204,1708625571216,-500.0,0.00034794,4]
[314904205,1708625571225,-764.63,0.00034794,4]
[314904206,1708625571235,-508.78,0.00034794,4]
[314904207,1708625571244,-802.5,0.00034794,4]
[314904208,1708625571254,-664.95,0.00034794,4]
[314904209,1708625571264,-632.57,0.00034794,4]
[314904210,1708625571273,-692.13,0.00034794,4]
[314904211,1708625571283,-509.92,0.00034794,4]
[314904212,1708625571293,-500.0,0.00034794,4]
[314904213,1708625571302,-607.02,0.00034794,4]
[314904214,1708625571312,-792.22,0.00034794,4]
[314904215,1708625571322,-500.0,0.00034794,4]
[314904216,1708625571332,-1057.84,0.00034794,4]
[314904217,1708625571342,-967.9,0.00034794,4]
[314904218,1708625571352,-500.0,0.00034794,4]
[314904219,1708625571361,-1015.71,0.00034794,4]
[314904220,1708625571371,-429.44405145,0.00034794,4]
[314904221,1708625571380,-500.0,0.00034794,4]
[314904222,1708625571389,-1057.91,0.00034794,4]
[314904223,1708625571399,-1562.84,0.00034794,4]
[314904224,1708625571408,-908.7,0.00034794,4]
[314904225,1708625571418,-574.22,0.00034794,4]
[314904226,1708625571429,-1195.95,0.00034794,4]
[314904227,1708625571438,-711.8,0.00034794,4]
[314904228,1708625571448,-500.0,0.00034794,4]
[314904229,1708625571457,-690.36,0.00034794,4]
[314904230,1708625571467,-582.2,0.00034794,4]
[314904231,1708625571477,-643.93,0.00034794,4]
[314904232,1708625571487,-623.27,0.00034794,4]
[314904233,1708625571496,-808.11,0.00034794,4]
[314904234,1708625571506,-500.0,0.00034794,4]
[314904235,1708625571516,-955.15,0.00034794,4]
[314904236,1708625571525,-500.0,0.00034794,2]
[314904237,1708625571535,-520.41,0.00034794,4]
[314904238,1708625571545,-500.0,0.00034794,4]
[314904239,1708625571555,-500.0,0.00034794,4]
[314904240,1708625571564,-539.17072706,0.00034794,4]
[314904241,1708625571573,-500.0,0.00034794,4]
[314904242,1708625571583,-814.72,0.00034794,4]
[314904243,1708625571593,-763.81,0.00034794,4]
[314904244,1708625571603,-642.76,0.00034794,4]
[314904245,1708625571612,-920.28,0.00034794,4]
[314904246,1708625571622,-595.79,0.00034794,4]
[314904247,1708625571632,-616.74,0.00034794,4]
[314904248,1708625571641,-500.0,0.00034794,4]
[314904249,1708625571651,-970.8,0.00034794,4]
[314904250,1708625571660,-523.23,0.00034794,4]
[314904251,1708625571670,-704.13,0.00034794,4]
[314904252,1708625571680,-569.97,0.00034794,4]
[314904253,1708625571689,-552.1,0.00034794,4]
[314904254,1708625571698,-693.29,0.00034794,4]
[314904255,1708625571708,-546.34,0.00034794,4]
[314904256,1708625571717,-500.0,0.00034794,4]
[314904257,1708625571726,-597.14,0.00034794,4]
[314904258,1708625571735,-936.39,0.00034794,4]
[314904259,1708625571744,-500.0,0.00034794,4]
[314904260,1708625571753,-1322.67,0.00034794,4]
[314904261,1708625571762,-513.58,0.00034794,4]
[314904262,1708625571772,-500.0,0.00034794,4]
[314904263,1708625571782,-652.66,0.00034794,4]
[314904264,1708625571791,-596.85149822,0.00034794,4]
[314904265,1708625571800,-902.91,0.00034794,4]
[314904266,1708625571809,-577.69,0.00034794,4]
[314904267,1708625571818,-905.48,0.00034794,4]
[314904268,1708625571827,-188.17092217,0.00034794,4]
[314904269,1708625571836,-1566.96,0.00034794,4]
[314904270,1708625571846,-500.0,0.00034794,4]
[314904271,1708625571855,-567.92,0.00034794,4]
[314904272,1708625571865,-885.89,0.00034794,4]
[314904273,1708625571874,-642.58,0.00034794,4]
[314904274,1708625571883,-851.67,0.00034794,4]
[314904275,1708625571895,-500.0,0.00034794,2]
[314904276,1708625571904,-572.75,0.00034794,4]
[314904277,1708625571913,-583.46,0.00034794,4]
[314904278,1708625571923,-1131.89,0.00034794,4]
[314904279,1708625571933,-500.0,0.00034794,4]
[314904280,1708625571942,-568.65,0.00034794,4]
[314904281,1708625571951,-500.0,0.00034794,4]
[314904282,1708625571961,-1313.43,0.00034794,4]
[314904283,1708625571971,-3828.9,0.00034794,4]
[314904284,1708625571981,-1312.47,0.00034794,4]
[314904285,1708625571991,-500.0,0.00034794,4]
[314904286,1708625572003,-637.56,0.00034794,4]
[314904287,1708625572012,-500.0,0.00034794,4]
[314904288,1708625572021,-771.01,0.00034794,4]
[314904289,1708625572030,-670.32,0.00034794,4]
[314904290,1708625572040,-905.48,0.00034794,4]
[314904291,1708625572049,-587.38,0.00034794,4]
[314904292,1708625572060,-500.0,0.00034794,4]
[314904293,1708625572069,-397.635707,0.00034794,4]
[314904294,1708625572078,-533.54180151,0.00034794,4]
[314904295,1708625572087,-500.0,0.00034794,4]
[314904296,1708625572130,-1115.25,0.00034794,4]
[314904297,1708625572139,-366.36082094,0.00034794,4]
[314904298,1708625572148,-617.27,0.00034794,4]
[314904299,1708625572158,-920.63,0.00034794,4]
[314904300,1708625572167,-1239.94,0.00034794,4]
[314904301,1708625572176,-1030.29,0.00034794,4]
[314904302,1708625572186,-500.0,0.00034794,4]
[314904303,1708625572195,-500.0,0.00034794,4]
[314904304,1708625572204,-799.98,0.00034794,4]
[314904305,1708625572213,-728.76,0.00034794,4]
[314904306,1708625572222,-500.0,0.00034794,4]
[314904307,1708625572231,-741.55,0.00034794,4]
[314904308,1708625572240,-617.56,0.00034794,4]
[314904309,1708625572251,-664.22,0.00034794,4]
[314904310,1708625572260,-582.0,0.00034794,4]
[314904311,1708625572269,-500.0,0.00034794,4]
[314904312,1708625572278,-541.78,0.00034794,4]
[314904313,1708625572287,-764.35,0.00034794,4]
[314904314,1708625572296,-1242.24,0.00034794,4]
[314904315,1708625572305,-500.0,0.00034794,4]
[314904316,1708625572314,-1041.1,0.00034794,4]
[314904317,1708625572323,-1494.6,0.00034794,4]
[314904318,1708625572332,-500.0,0.00034794,4]
[314904319,1708625572341,-500.0,0.00034794,4]
[314904320,1708625572350,-983.44,0.00034794,4]
[314904321,1708625572476,-871.52,0.00034794,4]
[314904322,1708625572487,-937.84,0.00034794,4]
[314904323,1708625572496,-500.0,0.00034794,4]
[314904324,1708625572506,-940.94,0.00034794,4]
[314904325,1708625572515,-988.42,0.00034794,4]
[314904326,1708625572524,-900.68,0.00034794,4]
[314904327,1708625572533,-1267.73,0.00034794,4]
[314904328,1708625572543,-1407.88,0.00034794,4]
[314904329,1708625572552,-598.66,0.00034794,4]
[314904330,1708625572562,-500.0,0.00034794,4]
[314904331,1708625572571,-1015.51,0.00034794,4]
[314904332,1708625572581,-500.0,0.00034794,4]
[314904333,1708625572590,-824.67,0.00034794,4]
[314904334,1708625572600,-1044.83,0.00034794,4]
[314904335,1708625572610,-500.0,0.00034794,4]
[314904336,1708625572619,-625.15,0.00034794,4]
[314904337,1708625572629,-848.25,0.00034794,4]
[314904338,1708625572638,-715.27,0.00034794,4]
[314904339,1708625572648,-500.0,0.00034794,4]
[314904340,1708625572657,-500.0,0.00034794,4]
[314904341,1708625572667,-500.0,0.00034794,4]
[314904342,1708625572677,-979.83,0.00034794,4]
[314904343,1708625572686,-1292.8,0.00034794,4]
[314904344,1708625572695,-651.21,0.00034794,4]
[314904345,1708625572705,-709.91,0.00034794,4]
[314904346,1708625572714,-579.59,0.00034794,4]
[314904347,1708625572724,-1259.45,0.00034794,4]
[314904348,1708625572733,-695.7,0.00034794,4]
[314904349,1708625572742,-972.69,0.00034794,4]
[314904350,1708625572752,-500.0,0.00034794,4]
[314904351,1708625572761,-500.0,0.00034794,4]
[314904352,1708625572771,-1106.66,0.00034794,4]
[314904353,1708625572780,-1263.76,0.00034794,4]
[314904354,1708625572790,-500.0,0.00034794,4]
[314904355,1708625572799,-1595.37,0.00034794,4]
[314904356,1708625572809,-535.25,0.00034794,4]
[314904357,1708625572819,-1321.09,0.00034794,4]
[314904358,1708625572828,-841.52,0.00034794,4]
[314904359,1708625572838,-593.4,0.00034794,4]
[314904360,1708625572848,-1083.33,0.00034794,4]
[314904361,1708625572859,-1312.31,0.00034794,4]
[314904362,1708625572869,-6861.46,0.00034794,4]
[314904363,1708625572879,-1322.97,0.00034794,4]
[314904364,1708625572891,-7508.74,0.00034794,4]
[314904365,1708625572903,-500.0,0.00034794,4]
[314904366,1708625572913,-500.0,0.00034794,4]
[314904367,1708625572922,-2188.57,0.00034794,4]
[314904368,1708625572932,-640.5,0.00034794,4]
[314904369,1708625572941,-1556.17,0.00034794,2]
[314904370,1708625572950,-931.24,0.00034794,4]
[314904371,1708625572960,-1521.19,0.00034794,4]
[314904372,1708625572969,-579.67,0.00034794,4]
[314904373,1708625572979,-1367.32,0.00034794,4]
[314904374,1708625572989,-500.0,0.00034794,4]
[314904375,1708625572999,-249.84330156,0.00034794,4]
[314904376,1708625573008,-3289.02,0.00034794,4]
[314904377,1708625573017,-1435.75,0.00034794,4]
[314904378,1708625573026,-670.88,0.00034794,4]
[314904379,1708625573036,-7764.94,0.00034794,4]
[314904380,1708625573045,-1463.74,0.00034794,4]
[314904381,1708625573054,-500.0,0.00034794,4]
[314904382,1708625573064,-500.0,0.00034794,4]
[314904383,1708625573072,-2618.09,0.00034794,4]
[314904384,1708625573081,-500.0,0.00034794,4]
[314904385,1708625573091,-571.38,0.00034794,4]
[314904386,1708625573100,-1754.26,0.00034794,4]
[314904387,1708625573109,-905.05,0.00034794,4]
[314904388,1708625573119,-1224.57,0.00034794,4]
[314904389,1708625573128,-1412.23,0.00034794,4]
[314904390,1708625573138,-1295.05,0.00034794,4]
[314904391,1708625573148,-2025.9,0.00034794,4]
[314904392,1708625573157,-734.04,0.00034794,4]
[314904393,1708625573166,-16810.08,0.00034794,4]
[314904394,1708625573175,-3953.01,0.00034794,4]
[314904395,1708625573184,-1357.88,0.00034794,4]
[314904396,1708625573194,-500.0,0.00034794,4]
[314904397,1708625573203,-523.91,0.00034794,4]
[314904398,1708625573211,-500.0,0.00034794,4]
[314904399,1708625573220,-1306.91,0.00034794,4]
[314904400,1708625573230,-1319.7,0.00034794,4]
[314904401,1708625573239,-2921.05,0.00034794,4]
[314904402,1708625573248,-3520.12,0.00034794,4]
[314904403,1708625573257,-1203.69,0.00034794,4]
[314904404,1708625573266,-4012.02,0.00034794,4]
[314904405,1708625573276,-7422.46,0.00034794,4]
[314904406,1708625573285,-2325.63,0.00034794,4]